fUSD/lending_fUSD_20260217
["ID","MTS","AMOUNT","RATE_DAILY","PERIOD"]
[405826322,1771342251547,-1377.00927173,0.00018,2]
[405826323,1771342251560,-825.89185212,0.00018,2]
[405826324,1771342251571,-588.0,0.00018,2]
[405826325,1771342251687,-507.04547635,0.00015102,2]
[405826326,1771342251699,-429.44783455,0.00015102,2]
[405826327,1771342251710,-3497.84650081,0.00015102,2]
[405826328,1771342251720,-377.76526068,0.00017973,2]
[405826329,1771342251730,-2622.74520601,0.00018,2]
[405826330,1771342251769,-996.19227455,0.00018,2]
[405826331,1771342251781,-6910.0,0.00018,2]
[405826332,1771342251792,-68888.0,0.00018,2]
[405826333,1771342251916,-254388.33293831,0.00018,2]
[405826334,1771342251927,-57264.5980398,0.00018,2]
[405826335,1771342252310,-298.12249999,0.00016501,2]
[405826336,1771342252351,-335.4,0.00013698,2]
[405826337,1771342252363,-437.07,0.00013698,2]
[405826338,1771342252373,-900.57193804,0.00016501,2]
[405826339,1771342252391,-772.47,0.00013698,2]
[405826340,1771342252401,-678.62348737,0.00016501,2]
[405826341,1771342334503,-3687.572,8.044e-05,2]
[405826342,1771342334535,-376.705,8.044e-05,2]
[405826343,1771342348640,-4531.0,8.137e-05,2]
[405826344,1771342380509,-9062.0,8.137e-05,2]
[405826345,1771342450604,-242.5113,7.788e-05,2]
[405826346,1771342450635,-6737.6189,8.108e-05,2]
[405826347,1771342450663,-1876.0,8.137e-05,2]
[405826348,1771342450692,-250.0,8.157e-05,2]
[405826349,1771342450721,-300.0,8.177e-05,2]
[405826350,1771342450826,-1187.7396,8.178e-05,2]
[405826351,1771342474002,-6342.018375,8.178e-05,2]
[405826352,1771342474034,-250.0,8.187e-05,2]
[405826353,1771342474066,-2562.0,8.192e-05,2]
[405826354,1771342474099,-150.0,8.206e-05,2]
[405826355,1771342474138,-500.0,8.207e-05,2]
[405826356,1771342474281,-391.96325,8.207e-05,2]
[405826357,1771342586651,-500.0,8.207e-05,2]
[405826358,1771342586690,-500.0,8.207e-05,2]
[405826359,1771342586725,-500.0,8.207e-05,2]
[405826360,1771342586759,-500.0,8.207e-05,2]
[405826361,1771342586792,-500.0,8.207e-05,2]
[405826362,1771342586829,-500.0,8.207e-05,2]
[405826363,1771342586863,-500.0,8.207e-05,2]
[405826364,1771342586896,-500.0,8.207e-05,2]
[405826365,1771342586931,-500.0,8.207e-05,2]
[405826366,1771342586965,-500.0,8.207e-05,2]
[405826367,1771342587000,-500.0,8.207e-05,2]
[405826368,1771342587032,-500.0,8.207e-05,2]
[405826369,1771342587065,-500.0,8.207e-05,2]
[405826370,1771342587098,-500.0,8.207e-05,2]
[405826371,1771342587131,-535.56784432,8.207e-05,2]
[405826372,1771342587167,-500.0,8.207e-05,2]
[405826373,1771342587200,-500.0,8.207e-05,2]
[405826374,1771342587235,-500.0,8.207e-05,2]
[405826375,1771342587268,-500.0,8.207e-05,2]
[405826376,1771342587300,-500.0,8.207e-05,2]
[405826377,1771342587333,-500.0,8.207e-05,2]
[405826378,1771342587368,-500.0,8.207e-05,2]
[405826379,1771342587401,-500.0,8.207e-05,2]
[405826380,1771342587437,-500.0,8.207e-05,2]
[405826381,1771342587471,-500.0,8.207e-05,2]
[405826382,1771342587508,-500.0,8.207e-05,2]
[405826383,1771342587544,-500.0,8.207e-05,2]
[405826384,1771342587577,-500.0,8.207e-05,2]
[405826385,1771342587612,-500.0,8.207e-05,2]
[405826386,1771342587646,-428.86431136,8.207e-05,2]
[405826387,1771342588340,-71.13568864,8.207e-05,2]
[405826388,1771342680226,172.2,6.502e-05,2]
[405826389,1771342796492,-20000.0,7.978e-05,2]
[405826390,1771342852806,-2374.6,7.595e-05,2]
[405826391,1771342853147,-1600.0,7.673e-05,2]
[405826392,1771342853175,-300.0,7.977e-05,2]
[405826393,1771342853205,-250.8,7.977e-05,2]
[405826394,1771342946606,-200.0,7.916e-05,2]
[405826395,1771342948031,-195.541,7.916e-05,2]
[405826396,1771342948053,-4.459,7.916e-05,2]
[405826397,1771342949600,-200.0,7.916e-05,2]
[405826398,1771343095006,300.0,0.0001115,7]
[405826401,1771343241349,-772.07,7.402e-05,2]
[405826415,1771343431412,-214.0,7.625e-05,2]
[405826416,1771343431422,-500.0,7.625e-05,2]
[405826417,1771343431431,-155.56,7.656e-05,2]
[405826418,1771343431481,-94.44,7.656e-05,2]
[405826419,1771343431490,-300.0,7.67e-05,2]
[405826420,1771343431500,-304.92702806,7.67e-05,2]
[405826421,1771343431511,-895.07297194,7.67e-05,2]
[405826422,1771343431521,-1596.52471037,7.671e-05,2]
[405826423,1771343431533,-2107.28432845,7.671e-05,2]
[405826424,1771343431544,-2000.0,7.671e-05,2]
[405826425,1771343431572,-951.09995283,7.671e-05,2]
[405826426,1771343431591,-23454.8955528,7.671e-05,2]
[405826427,1771343431603,-662.1300956,7.671e-05,2]
[405826428,1771343431615,-1075.43,7.671e-05,2]
[405826438,1771343437395,-1338.78,7.671e-05,2]
[405826440,1771343437451,-586.13386344,7.671e-05,2]
[405826441,1771343437505,-262.56508405,7.671e-05,2]
[405826442,1771343437558,-4639.83641246,7.671e-05,2]
[405826443,1771343437568,-500.0,7.687e-05,2]
[405826444,1771343437578,-164.48,7.8e-05,2]
[405826445,1771343437587,-1000.0,7.876e-05,2]
[405826446,1771343437598,-265.56589159,7.877e-05,2]
[405826447,1771343437607,-150.0,7.877e-05,2]
[405826448,1771343437617,-11960.11769595,7.878e-05,2]
[405826449,1771343437641,-3488039.88230405,7.878e-05,2]
[405826450,1771343437650,-11562.1444469,7.915e-05,2]
[405826451,1771343437660,-6247.97800355,7.915e-05,2]
[405826453,1771343437669,-3667.492,7.916e-05,2]
[405826455,1771343437679,-1050.0,7.916e-05,2]
[405826457,1771343437688,-89451.1427,7.978e-05,2]
[405826459,1771343437697,-461.0,8.006e-05,2]
[405826461,1771343437707,-151.0,8.022e-05,2]
[405826463,1771343437717,-433.0,8.038e-05,2]
[405826484,1771343438031,-264.0,8.054e-05,2]
[405826486,1771343438041,-265747.7227126,8.066e-05,2]
[405826488,1771343438050,-73690.4246518,8.066e-05,2]
[405826490,1771343438059,-360.0,8.07e-05,2]
[405826492,1771343438068,-280.0,8.086e-05,2]
[405826494,1771343438078,-308.0,8.102e-05,2]
[405826496,1771343438087,-780.0,8.114e-05,2]
[405826498,1771343438095,-244.0,8.118e-05,2]
[405826500,1771343438104,-1301.0,8.13e-05,2]
[405826501,1771343438113,-317.0,8.134e-05,2]
[405826503,1771343438123,-1462.0,8.147e-05,2]
[405826505,1771343438132,-818.0,8.163e-05,2]
[405826507,1771343438142,-220.0,8.179e-05,2]
[405826509,1771343438151,-1336.0,8.195e-05,2]
[405826511,1771343438161,-153.0,8.207e-05,3]
[405826513,1771343438171,-299.99,8.209e-05,2]
[405826515,1771343438180,-761.78,8.209e-05,2]
[405826517,1771343438190,-2106.28,8.219e-05,2]
[405826519,1771343438199,-1473.32,8.219e-05,2]
[405826521,1771343438208,-9999.99,8.219e-05,2]
[405826523,1771343438217,-311.5,8.219e-05,2]
[405826525,1771343438228,-1542.1,8.219e-05,2]
[405826527,1771343438237,-7136.18,8.219e-05,2]
[405826529,1771343438247,-9999.99,8.219e-05,2]
[405826531,1771343438257,-81423.96,8.219e-05,2]
[405826533,1771343438266,-150.99,8.219e-05,2]
[405826535,1771343438275,-2984.7,8.219e-05,2]
[405826537,1771343438285,-515.68,8.219e-05,2]
[405826539,1771343438295,-113529.54,8.219e-05,2]
[405826541,1771343438305,-29124.47,8.219e-05,2]
[405826543,1771343438315,-500.0,8.219e-05,2]
[405826545,1771343438324,-500.0,8.219e-05,2]
[405826547,1771343438334,-500.0,8.219e-05,2]
[405826549,1771343438345,-531.75020647,8.219e-05,2]
[405826551,1771343438355,-500.0,8.219e-05,2]
[405826553,1771343438364,-500.0,8.219e-05,2]
[405826555,1771343438374,-230.208684,8.219e-05,2]
[405826557,1771343438383,-14638.92,8.219e-05,2]
[405826558,1771343438393,-999.99,8.219e-05,2]
[405826560,1771343438402,-9999.99,8.219e-05,2]
[405826562,1771343438411,-9999.99,8.219e-05,2]
[405826564,1771343438421,-9999.99,8.219e-05,2]
[405826566,1771343438431,-3706.48,8.219e-05,2]
[405826568,1771343438440,-499.99,8.219e-05,2]
[405826570,1771343438450,-4999.99,8.219e-05,2]
[405826572,1771343438459,-6699.49,8.219e-05,2]
[405826574,1771343438469,-9999.99,8.219e-05,2]
[405826576,1771343438482,-150.99,8.219e-05,2]
[405826578,1771343438492,-23057.19,8.219e-05,2]
[405826580,1771343438502,-250.650734,8.219e-05,2]
[405826582,1771343438513,-1000.0,8.219e-05,2]
[405826584,1771343438525,-500.0,8.219e-05,2]
[405826586,1771343438534,-4194.14,8.219e-05,2]
[405826588,1771343438544,-88857.9529681,8.24e-05,2]
[405826590,1771343438553,-195.0,8.32e-05,2]
[405826592,1771343438563,-256.0,8.336e-05,2]
[405826594,1771343438573,-215.0,8.353e-05,2]
[405826596,1771343438583,-463.0,8.369e-05,2]
[405826598,1771343438592,-151.0,8.386e-05,2]
[405826600,1771343438602,-250.0,8.388e-05,2]
[405826602,1771343438612,-250.0,8.388e-05,2]
[405826604,1771343438622,-495.0,8.403e-05,2]
[405826606,1771343438632,-276.0,8.419e-05,2]
[405826608,1771343438641,-1680.0,8.437e-05,2]
[405826610,1771343438651,-486346.78908734,8.455e-05,2]
[405826612,1771343438660,-500.0,8.493e-05,2]
[405826614,1771343438670,-7257.94,8.519e-05,2]
[405826616,1771343438679,-7257.94,8.598e-05,2]
[405826618,1771343438689,-1600.0,8.632e-05,2]
[405826620,1771343438698,-448.60432958,8.637e-05,2]
[405826622,1771343438707,-255.0,8.664e-05,2]
[405826624,1771343438717,-7257.94,8.677e-05,2]
[405826626,1771343438727,-419.46,8.689e-05,2]
[405826628,1771343438737,-711.0,8.723e-05,2]
[405826630,1771343438746,-1586.0,8.741e-05,2]
[405826632,1771343438757,-7257.94,8.756e-05,2]
[405826634,1771343438767,-1261.0,8.758e-05,2]
[405826636,1771343438777,-500.0,8.767e-05,2]
[405826638,1771343438787,-1444.0,8.776e-05,2]
[405826640,1771343438796,-563.0,8.793e-05,2]
[405826642,1771343438806,-7257.94,8.835e-05,2]
[405826643,1771343438816,-7257.94,8.915e-05,2]
[405826645,1771343438825,-4058.54318996,8.917e-05,2]
[405826647,1771343438837,-500.0,8.986e-05,2]
[405826649,1771343438846,-237.28842339,8.986e-05,2]
[405826651,1771343438856,-500.0,8.986e-05,2]
[405826653,1771343438865,-214.0121963,8.986e-05,2]
[405826655,1771343438875,-466.0,8.986e-05,2]
[405826657,1771343438886,-150.0,8.986e-05,2]
[405826659,1771343438897,-500.0,8.986e-05,2]
[405826661,1771343438907,-500.0,8.986e-05,2]
[405826663,1771343438916,-500.0,8.986e-05,2]
[405826665,1771343438925,-500.0,8.986e-05,2]
[405826667,1771343438934,-500.0,8.986e-05,2]
[405826669,1771343438943,-500.0,8.986e-05,2]
[405826671,1771343438954,-150.0,8.986e-05,2]
[405826673,1771343438963,-500.0,8.986e-05,2]
[405826675,1771343438973,-150.0,8.986e-05,2]
[405826676,1771343438983,-500.0,8.986e-05,2]
[405826679,1771343438993,-500.0,8.986e-05,2]
[405826680,1771343439003,-500.0,8.986e-05,2]
[405826682,1771343439012,-150.0,8.986e-05,2]
[405826683,1771343439022,-150.0,8.986e-05,2]
[405826684,1771343439032,-150.0,8.986e-05,2]
[405826685,1771343439041,-7257.94,8.994e-05,2]
[405826686,1771343439051,-73690.4246518,9.03e-05,2]
[405826687,1771343439060,-500.0,9.041e-05,2]
[405826688,1771343439070,-500.0,9.041e-05,2]
[405826689,1771343439079,-466.0,9.041e-05,2]
[405826690,1771343439089,-151.2254874,9.041e-05,2]
[405826691,1771343439098,-500.0,9.041e-05,2]
[405826692,1771343439107,-500.0,9.041e-05,2]
[405826693,1771343439117,-500.0,9.041e-05,2]
[405826694,1771343439126,-500.0,9.041e-05,2]
[405826695,1771343439136,-500.87477363,9.041e-05,2]
[405826696,1771343439145,-500.0,9.041e-05,2]
[405826697,1771343439155,-150.07216309,9.041e-05,2]
[405826698,1771343439165,-500.0,9.041e-05,2]
[405826699,1771343439174,-500.0,9.041e-05,2]
[405826700,1771343439184,-500.0,9.041e-05,2]
[405826701,1771343439194,-500.0,9.041e-05,2]
[405826702,1771343439203,-150.0,9.041e-05,2]
[405826703,1771343439213,-500.0,9.041e-05,2]
[405826704,1771343439223,-1197.79447052,9.053e-05,2]
[405826705,1771343439233,-7257.94,9.073e-05,2]
[405826706,1771343439242,-220.15883999,9.096e-05,2]
[405826707,1771343439252,-500.0,9.096e-05,2]
[405826708,1771343439262,-466.0,9.096e-05,2]
[405826709,1771343439271,-500.0,9.096e-05,2]
[405826710,1771343439280,-500.0,9.096e-05,2]
[405826711,1771343439290,-500.0,9.096e-05,2]
[405826712,1771343439299,-500.0,9.096e-05,2]
[405826713,1771343439308,-500.0,9.096e-05,2]
[405826714,1771343439318,-537.18600864,9.096e-05,2]
[405826715,1771343439328,-500.0,9.096e-05,2]
[405826716,1771343439338,-500.0,9.096e-05,2]
[405826717,1771343439347,-500.0,9.096e-05,2]
[405826718,1771343439357,-150.0,9.096e-05,2]
[405826720,1771343439367,-874.34102985,9.14e-05,2]
[405826722,1771343439376,-500.0,9.15e-05,2]
[405826723,1771343439386,-466.0,9.15e-05,2]
[405826724,1771343439395,-178.36591542,9.15e-05,2]
[405826725,1771343439405,-500.0,9.15e-05,2]
[405826726,1771343439415,-500.0,9.15e-05,2]
[405826727,1771343439425,-500.0,9.15e-05,2]
[405826728,1771343439435,-500.0,9.15e-05,2]
[405826729,1771343439445,-500.0,9.15e-05,2]
[405826730,1771343439455,-500.0,9.15e-05,2]
[405826731,1771343439464,-500.0,9.15e-05,2]
[405826732,1771343439474,-250.53819001,9.15e-05,2]
[405826733,1771343439484,-7257.94,9.152e-05,2]
[405826734,1771343439493,-874.34102985,9.204e-05,2]
[405826735,1771343439502,-500.0,9.205e-05,2]
[405826736,1771343439512,-466.0,9.205e-05,2]
[405826737,1771343439522,-500.0,9.205e-05,2]
[405826738,1771343439531,-500.0,9.205e-05,2]
[405826739,1771343439540,-500.0,9.205e-05,2]
[405826740,1771343439550,-500.0,9.205e-05,2]
[405826741,1771343439559,-500.0,9.205e-05,2]
[405826742,1771343439569,-500.0,9.205e-05,2]
[405826743,1771343439578,-500.0,9.205e-05,2]
[405826744,1771343439588,-7257.94,9.231e-05,2]
[405826745,1771343439599,-1000.0,9.247e-05,2]
[405826746,1771343439610,-500.0,9.26e-05,2]
[405826747,1771343439620,-466.0,9.26e-05,2]
[405826748,1771343439630,-512.26030593,9.26e-05,2]
[405826749,1771343439639,-500.0,9.26e-05,2]
[405826750,1771343439649,-500.0,9.26e-05,2]
[405826751,1771343439659,-500.0,9.26e-05,2]
[405826752,1771343439671,-500.0,9.26e-05,2]
[405826753,1771343439680,-500.0,9.26e-05,2]
[405826754,1771343439689,-500.0,9.26e-05,2]
[405826755,1771343439700,-2351.0,9.281e-05,2]
[405826756,1771343439711,-265747.7227126,9.294e-05,2]
[405826757,1771343439722,-7257.94,9.31e-05,2]
[405826758,1771343439731,-500.0,9.315e-05,2]
[405826759,1771343439741,-466.0,9.315e-05,2]
[405826760,1771343439752,-475.49905426,9.315e-05,2]
[405826761,1771343439761,-500.0,9.315e-05,2]
[405826762,1771343439770,-500.0,9.315e-05,2]
[405826763,1771343439780,-500.0,9.315e-05,2]
[405826764,1771343439789,-500.0,9.315e-05,2]
[405826765,1771343439799,-621.12228144,9.315e-05,2]
[405826766,1771343439809,-500.0,9.315e-05,2]
[405826767,1771343439818,-88857.9529681,9.361e-05,2]
[405826768,1771343439830,-500.0,9.37e-05,2]
[405826769,1771343439840,-466.0,9.37e-05,2]
[405826770,1771343439850,-500.0,9.37e-05,2]
[405826771,1771343439859,-500.0,9.37e-05,2]
[405826772,1771343439870,-500.0,9.37e-05,2]
[405826773,1771343439880,-500.0,9.37e-05,2]
[405826774,1771343439889,-469.970126,9.37e-05,2]
[405826775,1771343439899,-7257.94,9.389e-05,2]
[405826776,1771343439909,-500.0,9.424e-05,2]
[405826777,1771343439920,-466.0,9.424e-05,2]
[405826778,1771343439930,-500.0,9.424e-05,2]
[405826779,1771343439940,-500.0,9.424e-05,2]
[405826780,1771343439949,-500.0,9.424e-05,2]
[405826781,1771343439960,-500.0,9.424e-05,2]
[405826782,1771343439969,-7257.94,9.468e-05,2]
[405826783,1771343439980,-500.0,9.479e-05,2]
[405826784,1771343439989,-466.0,9.479e-05,2]
[405826785,1771343439999,-500.0,9.479e-05,2]
[405826786,1771343440008,-500.0,9.479e-05,2]
[405826787,1771343440017,-500.0,9.479e-05,2]
[405826789,1771343440027,-500.0,9.479e-05,2]
[405826791,1771343440036,-433.0,9.531e-05,2]
[405826792,1771343440046,-500.0,9.534e-05,2]
[405826793,1771343440056,-466.0,9.534e-05,2]
[405826794,1771343440066,-500.0,9.534e-05,2]
[405826795,1771343440075,-500.0,9.534e-05,2]
[405826796,1771343440084,-500.0,9.534e-05,2]
[405826797,1771343440094,-500.0,9.534e-05,2]
[405826798,1771343440104,-7257.94,9.548e-05,2]
[405826799,1771343440114,-500.0,9.589e-05,2]
[405826800,1771343440123,-466.0,9.589e-05,2]
[405826801,1771343440132,-500.0,9.589e-05,2]
[405826802,1771343440142,-500.0,9.589e-05,2]
[405826803,1771343440152,-500.0,9.589e-05,2]
[405826804,1771343440161,-500.0,9.589e-05,2]
[405826805,1771343440174,-500.0,9.589e-05,2]
[405826806,1771343440183,-1600.0,9.592e-05,2]
[405826807,1771343440192,-7257.94,9.627e-05,2]
[405826808,1771343440202,-224.65460803,9.644e-05,2]
[405826809,1771343440211,-466.0,9.644e-05,2]
[405826811,1771343440221,-500.0,9.644e-05,2]
[405826812,1771343440231,-500.0,9.644e-05,2]
[405826813,1771343440240,-500.0,9.644e-05,2]
[405826814,1771343440250,-500.0,9.644e-05,2]
[405826815,1771343440259,-466.0,9.698e-05,2]
[405826816,1771343440269,-500.0,9.698e-05,2]
[405826817,1771343440279,-500.0,9.698e-05,2]
[405826818,1771343440288,-292.49812506,9.698e-05,2]
[405826819,1771343440298,-500.0,9.698e-05,2]
[405826820,1771343440308,-7257.94,9.706e-05,2]
[405826821,1771343440318,-172.2,9.753e-05,2]
[405826822,1771343440327,-466.0,9.753e-05,2]
[405826823,1771343440337,-594.68179644,9.753e-05,2]
[405826824,1771343440347,-500.0,9.753e-05,2]
[405826825,1771343440356,-500.0,9.753e-05,2]
[405826826,1771343440366,-7257.94,9.785e-05,2]
[405826827,1771343440376,-466.0,9.808e-05,2]
[405826828,1771343440386,-500.0,9.808e-05,2]
[405826829,1771343440395,-500.0,9.808e-05,2]
[405826830,1771343440405,-466.0,9.863e-05,2]
[405826831,1771343440415,-266.33885806,9.863e-05,2]
[405826832,1771343440425,-500.0,9.863e-05,2]
[405826833,1771343440434,-500.0,9.863e-05,2]
[405826834,1771343440444,-7257.94,9.864e-05,2]
[405826835,1771343440454,-466.0,9.918e-05,2]
[405826836,1771343440463,-500.0,9.918e-05,2]
[405826837,1771343440473,-7257.94,9.943e-05,2]
[405826838,1771343440483,-466.0,9.972e-05,2]
[405826839,1771343440492,-481.0942881,9.972e-05,2]
[405826840,1771343440502,-73690.4246518,9.994e-05,2]
[405826841,1771343440512,-583.22,0.0001,2]
[405826842,1771343440522,-812.01545755,0.0001,2]
[405826843,1771343440532,-812.01545753,0.0001,2]
[405826844,1771343440541,-151.0,0.0001,2]
[405826845,1771343440550,-151.0,0.0001,2]
[405826846,1771343440560,-151.0,0.0001,2]
[405826847,1771343440569,-151.0,0.0001,2]
[405826848,1771343440579,-151.0,0.0001,2]
[405826849,1771343440589,-151.0,0.0001,2]
[405826850,1771343440598,-151.0,0.0001,2]
[405826851,1771343440608,-151.0,0.0001,2]
[405826852,1771343440618,-151.0,0.0001,2]
[405826853,1771343440627,-151.0,0.0001,2]
[405826854,1771343440637,-151.0,0.0001,2]
[405826855,1771343440646,-151.0,0.0001,2]
[405826856,1771343440655,-151.0,0.0001,2]
[405826857,1771343440665,-151.0,0.0001,2]
[405826858,1771343440675,-151.0,0.0001,2]
[405826859,1771343440684,-151.0,0.0001,2]
[405826860,1771343440693,-151.0,0.0001,2]
[405826861,1771343440703,-151.0,0.0001,2]
[405826862,1771343440713,-151.0,0.0001,2]
[405826863,1771343440724,-151.0,0.0001,2]
[405826864,1771343440733,-500.0,0.0001,2]
[405826865,1771343440742,-500.0,0.0001,2]
[405826866,1771343440751,-500.0,0.0001,2]
[405826867,1771343440760,-500.0,0.0001,2]
[405826868,1771343440769,-500.0,0.0001,2]
[405826869,1771343440778,-500.0,0.0001,2]
[405826870,1771343440787,-200.0,0.0001,2]
[405826871,1771343440797,-500.0,0.0001,2]
[405826872,1771343440806,-500.0,0.0001,2]
[405826873,1771343440815,-500.0,0.0001,2]
[405826874,1771343440825,-500.0,0.0001,2]
[405826875,1771343440836,-200.0,0.0001,2]
[405826876,1771343440847,-500.0,0.0001,2]
[405826877,1771343440858,-151.0,0.0001,2]
[405826878,1771343440868,-500.0,0.0001,2]
[405826879,1771343440879,-151.0,0.0001,2]
[405826880,1771343440889,-151.0,0.0001,2]
[405826881,1771343440899,-151.0,0.0001,2]
[405826882,1771343440910,-151.0,0.0001,2]
[405826883,1771343440920,-151.0,0.0001,2]
[405826884,1771343440932,-151.0,0.0001,2]
[405826885,1771343440942,-310.34089999,0.0001,2]
[405826886,1771343440952,-310.34089999,0.0001,2]
[405826887,1771343440962,-310.34089999,0.0001,2]
[405826888,1771343440972,-151.0,0.0001,2]
[405826889,1771343440982,-151.0,0.0001,2]
[405826890,1771343440991,-151.0,0.0001,2]
[405826891,1771343441002,-337.0,0.0001,2]
[405826892,1771343441011,-151.0,0.0001,2]
[405826893,1771343441021,-151.0,0.0001,2]
[405826894,1771343441031,-337.0,0.0001,2]
[405826895,1771343441041,-151.0,0.0001,2]
[405826896,1771343441053,-337.85061866,0.0001,2]
[405826897,1771343441062,-151.0,0.0001,2]
[405826898,1771343441071,-500.0,0.0001,2]
[405826899,1771343441081,-151.0,0.0001,2]
[405826900,1771343441091,-500.0,0.0001,2]
[405826901,1771343441103,-151.0,0.0001,2]
[405826902,1771343441113,-500.0,0.0001,2]
[405826903,1771343441122,-151.0,0.0001,2]
[405826904,1771343441132,-500.0,0.0001,2]
[405826905,1771343441142,-151.0,0.0001,2]
[405826906,1771343441153,-500.0,0.0001,2]
[405826907,1771343441164,-500.0,0.0001,2]
[405826908,1771343441176,-500.0,0.0001,2]
[405826909,1771343441185,-500.0,0.0001,2]
[405826910,1771343441194,-500.0,0.0001,2]
[405826911,1771343441203,-500.0,0.0001,2]
[405826912,1771343441215,-500.0,0.0001,2]
[405826913,1771343441226,-758.85799306,0.0001,2]
[405826914,1771343441236,-758.85799306,0.0001,2]
[405826915,1771343441246,-7257.94,0.00010022,2]
[405826916,1771343441256,-466.0,0.00010027,2]
[405826917,1771343441266,-250.0,0.00010075,2]
[405826918,1771343441276,-153.0,0.00010077,3]
[405826919,1771343441286,-466.0,0.00010082,2]
[405826920,1771343441297,-466.0,0.00010137,2]
[405826921,1771343441307,-500.0,0.00010137,2]
[405826922,1771343441317,-466.0,0.00010191,2]
[405826923,1771343441327,-3292.0,0.00010209,2]
[405826924,1771343441336,-468.80031656,0.00010246,2]
[405826925,1771343441346,-1000.0,0.00010274,2]
[405826926,1771343441355,-583.22,0.00010274,2]
[405826927,1771343441365,-898.32890406,0.00010292,2]
[405826928,1771343441375,-500.0,0.00010411,2]
[405826929,1771343441384,-4587.476,0.00010458,2]
[405826930,1771343441394,-88857.9529681,0.00010483,2]
[405826931,1771343441405,-736.0,0.00010484,2]
[405826932,1771343441415,-758.85799306,0.00010511,2]
[405826933,1771343441424,-265747.7227126,0.00010521,2]
[405826934,1771343441434,-583.22,0.00010548,2]
[405826935,1771343441444,-200.0,0.00010548,2]
[405826936,1771343441454,-200.0,0.00010548,2]
[405826937,1771343441464,-500.0,0.00010548,2]
[405826938,1771343441474,-1600.0,0.00010551,2]
[405826939,1771343441484,-269.16259775,0.00010637,2]
[405826940,1771343441494,-500.0,0.00010685,2]
[405826941,1771343441504,-500.0,0.00010779,2]
[405826942,1771343441513,-501.03554845,0.00010779,2]
[405826943,1771343441523,-502.09858606,0.00010779,2]
[405826944,1771343441533,-500.0,0.00010779,2]
[405826945,1771343441543,-500.0,0.00010779,2]
[405826946,1771343441554,-164.61380668,0.00010779,2]
[405826947,1771343441563,-500.0,0.00010779,2]
[405826948,1771343441573,-500.0,0.00010779,2]
[405826949,1771343441584,-500.0,0.00010779,2]
[405826950,1771343441594,-500.0,0.00010779,2]
[405826951,1771343441604,-306.10762696,0.00010779,2]
[405826952,1771343441614,-500.0,0.00010779,2]
[405826953,1771343441623,-500.0,0.00010779,2]
[405826954,1771343441633,-500.0,0.00010779,2]
[405826955,1771343441642,-500.0,0.00010779,2]
[405826956,1771343441652,-160.37289206,0.00010779,2]
[405826957,1771343441661,-239.8459294,0.00010779,2]
[405826958,1771343441671,-500.0,0.00010779,2]
[405826959,1771343441681,-500.0,0.00010779,2]
[405826960,1771343441691,-500.0,0.00010779,2]
[405826961,1771343441701,-500.0,0.00010779,2]
[405826962,1771343441711,-615.3930462,0.00010779,2]
[405826963,1771343441720,-501.82748142,0.00010779,2]
[405826964,1771343441729,-500.0,0.00010779,2]
[405826965,1771343441739,-500.0,0.00010779,2]
[405826966,1771343441748,-500.0,0.00010779,2]
[405826967,1771343441758,-583.22,0.00010822,2]
[405826968,1771343441767,-3645.38259458,0.000109,2]
[405826969,1771343441778,-3645.38259458,0.000109,2]
[405826970,1771343441789,-3645.38259458,0.000109,2]
[405826971,1771343441800,-203235.0,0.000109,2]
[405826972,1771343441811,-73690.4246518,0.00010958,2]
[405826973,1771343441820,-500.0,0.00010959,2]
[405826974,1771343441831,-226.88409827,0.00010959,2]